bitfinex/quotes_ETHUSD_20250511
["timestamp","ask_amount","ask_price","bid_price","bid_amount"]
[1746922097045,0.03764309,2590.0,2588.7,0.03861947]
[1746922097229,0.03764309,2590.0,2588.8,6.12]
[1746922097430,0.03764309,2590.3,2588.9,0.03861659]
[1746922097745,0.03764309,2590.6,2589.1,8.0]
[1746922097929,0.03764309,2590.6,2589.3,8.0]
[1746922098132,0.03764309,2591.3,2589.6,0.55]
[1746922098331,0.55,2591.2,2589.7,15.587]
[1746922098504,0.03764309,2591.1,2589.7,15.587]
[1746922098710,0.03764309,2591.5,2589.7,15.587]
[1746922099011,0.03764309,2591.5,2589.8,0.03859976]
[1746922099358,0.03764309,2591.6,2590.2,8.0]
[1746922099604,0.03764309,2592.2,2590.4,12.27518513]
[1746922099741,19.0093367,2592.8,2590.4,12.27518513]
[1746922099742,3.85741173,2592.5,2590.6,8.0]
[1746922100049,0.80909812,2592.4,2590.7,0.03858814]
[1746922100258,0.03764309,2592.4,2590.8,8.0]
[1746922100460,0.03764309,2592.7,2591.0,8.0]
[1746922100643,0.03764309,2592.7,2591.3,0.8077]
[1746922101464,0.03764309,2592.7,2591.4,0.03857875]
[1746922101660,0.03764309,2592.7,2591.4,1.15500662]
[1746922101862,0.03764309,2592.7,2591.4,1.11642787]
[1746922102015,0.03764309,2592.7,2591.5,0.03857755]
[1746922102221,0.03764309,2592.7,2591.2,8.0]
[1746922102534,0.55,2591.7,2589.8,0.8077]
[1746922102737,0.55,2591.0,2589.3,0.8077]
[1746922102960,0.03764309,2590.9,2589.4,0.03860658]
[1746922103133,0.55,2591.0,2589.3,8.8077]
[1746922103334,0.03764309,2590.9,2589.3,8.8077]
[1746922103547,0.03764309,2591.2,2589.4,0.03860487]
[1746922103759,0.03764309,2591.2,2589.8,8.55]
[1746922103971,0.03764309,2591.3,2589.8,0.55]
[1746922104144,13.888,2591.4,2589.9,1.97302054]
[1746922104323,5.1183367,2592.6,2590.2,9.98573019]
[1746922104518,0.54947676,2592.5,2590.4,0.55]
[1746922104834,3.85811407,2592.0,2590.3,1.07934302]
[1746922105048,5.6683367,2591.8,2590.1,7.383]
[1746922105250,0.55,2591.1,2589.7,0.14381791]
[1746922105456,0.55,2590.9,2589.5,0.7974]
[1746922105628,3.86019625,2590.6,2589.0,0.7974]
[1746922105958,3.85942245,2591.1,2589.0,0.7974]
[1746922105959,0.03764309,2590.5,2589.1,0.03861578]
[1746922106161,0.55,2591.1,2589.1,0.81970158]
[1746922106331,0.55,2590.9,2589.1,0.81970158]
[1746922106531,0.55,2590.7,2589.1,0.81970158]
[1746922106761,0.03764309,2590.6,2589.1,0.81970158]
[1746922106939,0.03764309,2591.1,2589.1,0.85831212]
[1746922107120,0.55,2591.0,2589.2,0.96557121]
[1746922107323,0.03764309,2590.9,2589.4,0.55]
[1746922107655,0.03764309,2591.3,2589.6,8.0]
[1746922107829,0.55,2591.2,2589.6,8.0]
[1746922108023,0.03764309,2591.1,2589.6,8.0]
[1746922108375,0.03764309,2591.1,2589.3,6.12]
[1746922108376,0.55,2591.0,2589.3,6.12]
[1746922108537,13.887,2591.4,2589.2,0.96557121]
[1746922108538,0.55,2590.8,2589.2,0.96557121]
[1746922108721,0.55,2590.6,2589.3,0.03861055]
[1746922108923,0.03764309,2591.0,2589.4,0.03861194]
[1746922109226,0.03764309,2591.2,2589.6,8.7974]
[1746922109457,0.03764309,2591.2,2589.8,8.55]
[1746922109665,13.887,2591.4,2589.8,8.0]
[1746922109852,0.03764309,2591.3,2589.9,1.412]
[1746922110169,0.55,2591.2,2589.8,8.0]
[1746922110333,0.03764309,2591.1,2589.7,0.03860732]
[1746922110527,0.55,2591.0,2589.2,8.0]
[1746922110835,0.55,2590.8,2589.3,0.03860955]
[1746922111054,0.03764309,2590.7,2589.4,8.0]
[1746922111251,0.03764309,2591.0,2589.5,1.56210813]
[1746922111422,0.03764309,2591.3,2589.7,0.55]
[1746922111624,0.03764309,2591.3,2589.6,14.12]
[1746922112262,0.03764309,2591.3,2589.6,0.55]
[1746922112465,0.03764309,2591.3,2589.7,0.03860059]
[1746922112662,0.03764309,2591.3,2589.7,1.01121006]
[1746922112835,0.03764309,2591.3,2589.7,0.03860057]
[1746922113027,0.55,2591.1,2589.5,8.0]
[1746922113230,0.03764309,2591.0,2589.5,8.29003925]
[1746922113441,0.55,2590.9,2589.5,8.29003925]
[1746922113638,0.55,2590.4,2588.6,0.794]
[1746922113838,0.03764309,2590.3,2588.7,0.03861612]
[1746922114169,0.55,2590.2,2588.7,0.28691495]
[1746922114351,0.03764309,2590.1,2588.6,0.794]
[1746922114870,0.58764309,2590.6,2588.7,0.55]
[1746922115068,5.11691266,2591.1,2588.9,8.55]
[1746922115069,0.03764309,2590.5,2588.9,8.55]
[1746922115290,0.03764309,2591.0,2589.1,0.55]
[1746922115446,0.03764309,2591.0,2589.2,0.03860922]
[1746922115652,0.03764309,2591.0,2589.3,0.55]
[1746922115844,0.55,2590.7,2589.1,6.12]
[1746922116050,0.03764309,2590.6,2589.1,6.12]
[1746922116357,0.03764309,2590.6,2589.1,6.90226615]
[1746922116537,0.03764309,2590.6,2589.1,0.78226615]
[1746922116734,0.55,2590.3,2588.9,6.12]
[1746922116936,0.03764309,2590.2,2588.6,0.794]
[1746922117135,3.86100386,2590.0,2588.1,0.827]
[1746922117377,0.58764309,2589.9,2588.2,7.049]
[1746922117538,0.03764309,2589.9,2588.3,0.03862545]
[1746922117734,0.03764309,2589.9,2588.3,14.950088]
[1746922117998,0.03764309,2590.0,2588.4,0.55]
[1746922118158,0.03764309,2590.0,2588.5,0.03861515]
[1746922118364,0.03764309,2590.0,2588.4,0.55]
[1746922118663,13.889,2590.1,2588.8,2.51053949]
[1746922118978,0.03764309,2590.0,2589.0,0.55]
[1746922119285,13.889,2591.7,2589.5,1.96813391]
[1746922119485,0.03764309,2591.6,2589.7,8.55]
[1746922119677,0.03764309,2592.1,2590.1,0.55]
[1746922119986,16.42816441,2592.6,2590.7,10.46297032]
[1746922119987,0.03764309,2592.4,2590.7,10.46297032]
[1746922120133,2.53916441,2591.7,2590.9,8.55]
[1746922120332,2.53916441,2591.7,2590.9,14.67]
[1746922120737,2.53916441,2591.7,2591.1,10.868]
[1746922120936,3.30091373,2592.4,2591.5,0.55]
[1746922121171,3.30091373,2592.4,2591.7,8.55]
[1746922121335,3.30091373,2592.4,2591.9,0.55]
[1746922121536,3.30091373,2592.4,2592.1,8.0]
[1746922121952,3.30091373,2592.4,2592.1,8.03857023]
[1746922122136,3.30091373,2592.4,2591.8,10.491]
[1746922122338,3.30091373,2592.4,2591.5,8.0]
[1746922122567,3.30091373,2592.4,2591.6,0.55]
[1746922122835,3.30091373,2592.4,2591.5,8.0]
[1746922123240,0.03764309,2592.3,2591.5,8.0]
[1746922124261,0.03764309,2592.9,2591.4,6.95]
[1746922124460,4.40687982,2592.8,2591.5,8.0]
[1746922124705,0.55,2592.6,2591.4,6.95]
[1746922124886,0.03764309,2592.5,2591.5,8.0]
[1746922125035,0.55,2592.7,2591.4,6.95]
[1746922125235,0.03764309,2592.6,2591.4,6.95]
[1746922125439,5.11691266,2592.5,2590.8,1.12899703]
[1746922125644,0.55,2591.8,2590.4,6.869]
[1746922125892,3.85939655,2591.1,2589.8,4.03975236]
[1746922126045,3.86021586,2590.6,2589.8,4.03975236]
[1746922126242,0.03764309,2590.5,2590.3,8.0]
[1746922126479,0.55,2590.9,2589.8,4.03975236]
[1746922126691,0.55,2590.7,2589.8,4.03975236]
[1746922126982,0.03764309,2590.6,2589.5,6.874]
[1746922127146,3.86062699,2590.3,2589.1,3.28229879]
[1746922127342,0.03764309,2590.2,2589.2,0.03862031]
[1746922127681,0.55,2590.3,2589.2,8.03862031]
[1746922127863,0.03764309,2590.2,2589.1,3.28229879]
[1746922128579,0.55,2590.0,2589.1,3.28229879]
[1746922128757,0.55,2589.8,2589.1,3.28229879]
[1746922128958,0.03764309,2589.9,2589.2,8.0]
[1746922128959,0.55,2589.6,2589.2,8.0]
[1746922129175,0.03764309,2589.5,2589.1,3.28229879]
[1746922129361,0.55,2589.6,2589.2,8.0]
[1746922129560,0.03764309,2589.5,2589.2,8.0]
[1746922129756,0.03764309,2589.5,2588.0,0.795]
[1746922129757,0.58764309,2589.9,2588.1,0.03862424]
[1746922130097,0.03764309,2589.9,2588.2,8.55]
[1746922130385,0.03764309,2590.5,2588.7,1.96544123]
[1746922130560,0.03764309,2590.5,2589.0,2.51656252]
[1746922130896,0.03764309,2590.6,2589.4,0.7829]
[1746922131394,0.03764309,2590.6,2589.5,0.58860744]
[1746922131577,13.888,2591.8,2589.7,0.55]
[1746922131774,0.03764309,2591.7,2589.9,2.4844279]
[1746922131943,0.03764309,2591.7,2589.6,6.12]
[1746922132143,1.4302074,2591.7,2590.0,0.55]
[1746922132556,1.4302074,2591.7,2590.1,0.03859757]
[1746922132763,1.4302074,2591.7,2589.9,0.55]
[1746922132974,3.85924362,2591.2,2589.7,0.612]
[1746922133174,0.42356745,2591.1,2589.4,0.7829]
[1746922133365,0.03764309,2591.1,2589.5,0.55]
[1746922133565,0.58764309,2591.4,2589.6,8.0]
[1746922133887,0.58764309,2591.4,2589.7,0.03860246]
[1746922134393,0.58764309,2591.4,2589.1,6.709]
[1746922134394,0.55,2590.8,2589.1,6.709]
[1746922134701,4.41025841,2590.6,2589.1,6.709]
[1746922134875,0.55,2590.4,2589.1,6.709]
[1746922135076,3.86086935,2590.1,2589.2,0.03861665]
[1746922135279,0.03764309,2590.0,2588.2,0.7543]
[1746922135477,0.55,2589.9,2588.2,0.7543]
[1746922135678,0.55,2589.7,2588.0,3.28229879]
[1746922135882,0.55,2589.5,2588.1,8.32822988]
[1746922136068,0.55,2589.3,2588.1,8.32822988]
[1746922136270,0.03764309,2589.2,2588.2,0.03863261]
[1746922136486,0.03764309,2589.5,2588.1,0.32822988]
[1746922136693,0.03764309,2589.8,2588.2,0.03862678]
[1746922136997,0.55,2590.1,2588.3,0.55]
[1746922137288,0.55,2589.9,2588.1,8.32822988]
[1746922137488,0.55,2589.7,2588.2,0.03862622]
[1746922137792,0.03764309,2589.6,2588.2,0.03862622]
[1746922138091,0.03764309,2589.6,2588.2,1.20354171]
[1746922138408,0.03764309,2590.0,2588.3,0.55]
[1746922138561,0.03764309,2590.0,2588.4,0.03862202]
[1746922138757,0.03764309,2590.0,2588.5,0.55]
[1746922138952,0.03764309,2590.5,2588.5,0.55]
[1746922139157,0.03764309,2590.5,2588.7,0.7543]
[1746922139415,0.03764309,2590.5,2588.8,0.03861695]
[1746922139554,0.03764309,2590.5,2588.9,8.0]
[1746922139963,0.03764309,2590.5,2589.0,0.03861885]
[1746922140303,0.55,2590.4,2588.9,8.0]
[1746922140470,0.03764309,2590.3,2589.0,1.4562]
[1746922141316,0.03764309,2590.5,2589.0,1.4562]
[1746922141883,0.03764309,2590.5,2589.1,8.58861338]
[1746922142083,5.11691266,2591.5,2589.1,6.70861338]
[1746922142308,0.03764309,2591.4,2589.3,8.55]
[1746922142616,0.03764309,2591.4,2589.0,1.4562]
[1746922142617,5.11691266,2590.6,2589.0,1.4562]
[1746922142781,0.55,2590.1,2588.8,6.562]
[1746922142982,0.55,2589.9,2588.4,0.7543]
[1746922143171,0.55,2589.3,2587.8,80.05137744]
[1746922143370,4.41275432,2588.9,2587.8,72.81207744]
[1746922143574,0.55,2588.7,2587.8,72.81207744]
[1746922143819,0.03764309,2588.6,2587.9,8.0]
[1746922143980,5.15455575,2588.6,2587.8,72.81207744]
[1746922144309,1.06545558,2588.5,2587.8,72.81207744]
[1746922144474,0.03764309,2588.4,2587.8,72.81207744]
[1746922144666,4.41355449,2588.3,2587.8,72.81207744]
[1746922144867,4.41413694,2587.9,2587.8,71.74940022]
[1746922145124,8.58764309,2587.9,2587.8,71.18993572]
[1746922145269,13.23453202,2587.9,2587.8,71.18993572]
[1746922145473,13.19688893,2587.9,2587.8,63.19013572]
[1746922145700,12.41413694,2587.9,2587.8,63.19013572]
[1746922145909,8.55,2587.9,2587.8,63.19013572]
[1746922146089,12.45178003,2587.9,2587.8,63.19013572]
[1746922146294,12.41413694,2587.9,2587.8,31.66754166]
[1746922146609,12.41413694,2587.9,2587.8,24.6946789]
[1746922146809,14.09821294,2587.9,2587.8,22.87577898]
[1746922147107,17.04004052,2587.9,2587.8,20.75999952]
[1746922147276,12.41413694,2587.9,2587.8,20.75999952]
[1746922147730,5.11691266,2588.3,2587.8,20.75999952]
[1746922148015,3.90144537,2588.2,2587.8,20.75999952]
[1746922148225,8.0,2588.1,2587.8,20.75999952]
[1746922148407,0.03764309,2588.0,2587.8,20.75999952]
[1746922148586,5.11691266,2588.4,2587.8,20.75999952]
[1746922148587,0.03764309,2588.2,2587.8,20.75999952]
[1746922148792,0.03764309,2588.1,2587.8,20.75999952]
[1746922149187,3.86378806,2588.2,2587.8,20.75999952]
[1746922149385,0.42778621,2588.1,2587.8,20.75999952]
[1746922149587,0.03764309,2588.1,2587.8,20.75999952]
[1746922149792,0.03764309,2588.3,2587.8,20.75999952]
[1746922150206,6.69343328,2589.8,2587.9,8.8177402]
[1746922150207,0.03764309,2589.1,2587.9,8.8177402]
[1746922150584,0.03764309,2589.4,2587.9,8.8177402]
[1746922151023,0.03764309,2589.4,2588.0,0.55]
[1746922151219,0.03764309,2589.4,2588.1,0.93677402]
[1746922151776,0.03764309,2589.4,2588.4,0.55]
[1746922152090,17.79875907,2590.6,2588.6,8.0]
[1746922152409,0.03764309,2590.5,2588.7,0.03862203]
[1746922152606,0.03764309,2590.4,2588.8,0.55]
[1746922152807,0.03764309,2590.4,2588.9,0.0386171]
[1746922153579,0.03764309,2590.5,2588.8,0.7791]
[1746922153779,0.03764309,2590.5,2589.1,0.55]
[1746922154126,0.03764309,2590.5,2589.2,0.03861094]
[1746922154325,13.899,2591.5,2589.5,0.55]
[1746922154627,0.03764309,2591.4,2589.7,8.0]
[1746922155009,0.03764309,2591.4,2589.8,0.55]
[1746922155381,0.03764309,2591.4,2589.7,8.0]
[1746922156305,0.03764309,2591.4,2589.8,0.55]
[1746922156627,3.89661406,2591.4,2589.8,0.55]
[1746922157037,0.03764309,2591.4,2589.7,8.0]
[1746922157210,3.89658979,2591.4,2589.7,8.0]
[1746922157405,0.03764309,2591.4,2589.8,0.03860448]
[1746922157738,0.03764309,2591.4,2589.9,0.7872]
[1746922158098,0.03764309,2591.4,2590.0,0.03860475]
[1746922158298,0.03764309,2591.4,2589.9,0.7872]
[1746922158739,0.03764309,2591.4,2590.0,0.03860107]
[1746922159037,0.03764309,2591.4,2589.9,0.7872]
[1746922159242,5.15455575,2591.4,2589.9,0.7872]
[1746922159403,0.55,2590.2,2589.4,0.7872]
[1746922159601,0.03764309,2590.1,2589.4,0.7872]
[1746922159815,0.55,2590.3,2589.4,0.7872]
[1746922160021,0.03764309,2590.2,2589.4,0.7872]
[1746922160439,0.55,2590.3,2589.4,0.7872]
[1746922160655,0.55,2590.1,2589.4,0.7872]
[1746922160843,0.03764309,2590.0,2589.4,0.7872]
[1746922161013,0.55,2590.3,2589.4,0.7872]
[1746922161219,0.55,2590.1,2589.4,0.7872]
[1746922161434,0.03764309,2590.0,2589.4,0.7872]
[1746922161632,0.03764309,2590.0,2588.3,0.8142]
[1746922161633,0.55,2589.4,2588.3,0.8142]
[1746922161941,0.55,2588.7,2587.8,21.57419952]
[1746922162267,0.55,2588.5,2587.9,8.0]
[1746922162535,0.03764309,2588.4,2587.9,8.0]
[1746922162741,0.55,2588.3,2587.8,20.75999952]
[1746922162914,0.03764309,2588.2,2587.8,20.75999952]
[1746922163555,3.86365126,2588.3,2587.8,20.75999952]
[1746922163756,0.55,2588.1,2587.8,20.75999952]
[1746922164052,0.03764309,2588.0,2587.8,20.75999952]
[1746922164421,0.03764309,2588.6,2587.9,8.0]
[1746922164951,1.2568074,2588.6,2587.9,8.0]
[1746922165153,0.03764309,2588.6,2587.9,8.0]
[1746922165655,0.58764309,2588.6,2587.9,8.0]
[1746922165952,4.41329297,2588.5,2587.9,8.0]
[1746922166159,4.41329297,2588.5,2587.8,20.75999952]
[1746922166160,3.90106696,2588.4,2587.8,20.75999952]
[1746922166341,0.03764309,2588.4,2587.8,20.75999952]
[1746922166533,0.03764309,2588.6,2587.9,8.0]
[1746922166729,0.55,2588.5,2587.9,8.0]
[1746922166931,0.03764309,2588.4,2587.9,8.0]
[1746922167532,0.03764309,2589.0,2587.9,8.791]
[1746922167731,6.06864309,2589.1,2588.0,0.03863868]
[1746922167933,6.06864309,2589.1,2587.9,8.791]
[1746922168859,0.55,2589.0,2587.9,8.791]
[1746922169067,3.90031827,2588.9,2587.9,8.791]
[1746922169363,0.55,2588.6,2587.8,20.75999952]
[1746922169662,0.03764309,2588.5,2587.8,20.75999952]
[1746922169861,0.55,2588.7,2587.9,8.0]
[1746922170020,0.47892785,2588.6,2587.9,8.0]
[1746922170382,0.03764309,2588.6,2587.9,8.0]
[1746922170576,0.55,2588.5,2587.9,8.0]
[1746922170725,0.03764309,2588.4,2587.9,8.0]
[1746922170927,0.58764309,2588.9,2587.9,8.0]
[1746922171469,0.03764309,2588.9,2587.9,8.0]
[1746922171643,4.41289275,2588.8,2587.9,8.0]
[1746922171962,0.55,2588.6,2587.9,8.0]
[1746922172173,0.03764309,2588.5,2587.9,8.0]
[1746922172326,4.4134061,2588.4,2587.8,20.75999952]
[1746922172518,0.55,2588.2,2587.8,20.75999952]
[1746922172723,0.55,2588.0,2587.8,20.75999952]
[1746922172969,14.48764309,2587.9,2587.8,20.75999952]
[1746922173264,18.31413694,2587.9,2587.8,20.72235643]
[1746922174341,13.9,2587.9,2587.8,20.72235643]
[1746922175259,13.9,2587.9,2587.8,20.67235643]
[1746922175461,17.76413694,2587.9,2587.8,20.67235643]
[1746922175665,18.31413694,2587.9,2587.8,20.67235643]
[1746922175862,14.45,2587.9,2587.8,20.67235643]
[1746922176162,18.31413694,2587.9,2587.8,20.67235643]
[1746922177222,26.31413694,2587.9,2587.8,7.70930846]
[1746922177663,26.52749318,2587.9,2587.8,7.70930846]
[1746922178261,32.41149318,2587.9,2587.8,7.15930846]
[1746922178464,43.37640584,2587.9,2587.8,7.15930846]
[1746922179783,3.86619651,2586.6,2585.5,0.7758]
[1746922179970,3.86643777,2586.4,2585.5,0.7758]
[1746922180172,3.86677078,2586.2,2585.5,0.7758]
[1746922180376,0.55,2586.4,2585.0,20.7586]
[1746922180582,19.789,2586.5,2585.0,20.7586]
[1746922180877,19.789,2586.5,2585.1,0.03867706]
[1746922181077,19.789,2586.5,2585.1,10.11840477]
[1746922181292,3.86674903,2586.2,2585.1,10.11840477]
[1746922181589,3.8668641,2586.1,2585.1,2.07972771]
[1746922181885,3.86694865,2586.1,2585.0,20.7586]
[1746922182085,3.86708511,2586.0,2585.1,8.0]
[1746922182301,0.55,2586.4,2585.1,8.0]
[1746922182491,4.41638732,2586.4,2585.0,20.7586]
[1746922182696,3.86734777,2585.8,2585.0,20.0]
[1746922182986,0.55,2585.9,2585.0,20.0]
[1746922183168,0.55,2585.8,2585.0,20.0]
[1746922183558,3.86811536,2585.3,2585.0,20.0]
[1746922183752,9.75429209,2585.2,2585.1,8.0]
[1746922183952,5.886,2585.2,2585.0,20.0]
[1746922184175,5.886,2585.2,2585.1,8.0]
[1746922185178,8.55,2584.6,2582.1,3.28229879]
[1746922185378,5.11691266,2583.9,2582.2,0.35057339]
[1746922185579,3.87186178,2582.8,2582.2,0.33026111]
[1746922185893,5.741,2582.7,2582.2,8.0]
[1746922186278,0.55,2582.8,2582.1,3.28229879]
[1746922186478,5.743,2582.7,2582.1,3.28229879]
[1746922186682,9.61491948,2582.7,2582.2,8.0]
[1746922186905,5.743,2582.7,2582.2,8.0]
[1746922187268,5.743,2583.0,2582.2,1.12822988]
[1746922187468,5.743,2583.0,2582.2,8.7586]
[1746922187870,19.02691266,2583.8,2582.1,3.28229879]
[1746922187871,0.55,2582.4,2582.1,3.28229879]
[1746922188107,5.887,2582.3,2582.1,3.28229879]
[1746922188309,3.87056819,2583.6,2582.2,8.0]
[1746922188510,5.11691266,2583.7,2582.2,8.0]
[1746922188511,5.887,2583.1,2582.2,8.0]
[1746922188809,13.915,2583.5,2582.3,0.7586]
[1746922189589,0.55,2583.4,2582.3,0.7586]
[1746922189881,3.87175099,2582.9,2582.3,0.7586]
[1746922190088,5.89,2582.8,2582.3,0.7586]
[1746922190385,3.87191698,2582.7,2581.5,0.8245]
[1746922190584,3.87207536,2582.6,2581.5,0.8245]
[1746922190896,5.89,2582.8,2581.5,0.8245]
[1746922191220,3.8720755,2582.6,2581.5,0.8245]
[1746922191400,3.87231023,2582.5,2581.5,0.8245]
[1746922191710,0.55,2582.4,2581.5,0.8245]
[1746922192097,0.55,2582.5,2581.5,0.8245]
[1746922192776,4.42194276,2582.7,2581.5,0.8245]
[1746922193012,5.892,2582.6,2581.5,0.8245]
[1746922193212,0.55,2582.7,2581.5,0.8245]
[1746922193413,5.892,2582.5,2581.5,0.8245]
[1746922193625,5.892,2582.5,2581.6,0.03873361]
[1746922193830,5.892,2583.7,2581.7,9.3745]
[1746922193997,5.892,2583.7,2581.9,0.8245]
[1746922194199,9.76245423,2583.7,2581.9,0.8245]
[1746922194416,5.892,2583.7,2582.0,0.03871913]
[1746922194922,5.892,2583.7,2582.1,0.7988]
[1746922195230,5.892,2583.7,2582.3,0.7988]
[1746922195525,5.892,2583.7,2582.5,0.7988]
[1746922195725,5.892,2583.7,2582.7,8.7988]
[1746922195905,19.818,2584.5,2582.9,0.7988]
[1746922196108,3.8695662,2584.3,2582.9,0.7988]
[1746922196280,19.818,2584.5,2582.9,0.7988]
[1746922196487,13.926,2584.5,2583.0,0.55]
[1746922196686,13.926,2584.5,2583.3,0.7988]
[1746922197216,13.926,2584.5,2583.4,8.03869973]
[1746922197420,13.926,2584.5,2583.5,1.68254997]
[1746922197594,5.892,2584.8,2583.8,0.7988]
[1746922198024,5.892,2584.8,2583.9,0.03869779]
[1746922199115,5.892,2584.8,2583.8,0.7988]
[1746922199291,5.892,2584.8,2584.0,0.7988]
[1746922199495,5.892,2584.8,2584.1,0.03869254]
[1746922199698,5.892,2584.8,2584.0,0.7988]
[1746922200236,6.4812,2584.8,2584.0,0.7988]
[1746922200386,5.892,2584.8,2584.0,0.7988]
[1746922201135,5.892,2584.8,2584.0,0.83749535]
[1746922201504,5.892,2584.8,2584.2,8.0]
[1746922201701,19.664,2585.6,2584.2,8.0]
[1746922202015,19.664,2585.6,2584.3,0.7709]
[1746922202202,0.55,2585.5,2584.3,0.7709]
[1746922202391,3.86795847,2585.4,2584.3,0.7709]
[1746922202736,0.55,2585.0,2584.3,0.7709]
[1746922202904,4.41857473,2585.0,2584.3,0.7709]
[1746922203087,3.86892942,2584.7,2583.8,0.7709]
[1746922203293,6.287,2584.6,2583.8,0.7709]
[1746922203601,6.287,2584.6,2582.2,13.927]
[1746922203602,0.55,2584.4,2583.3,0.7709]
[1746922203839,0.55,2584.2,2583.3,0.7709]
[1746922204017,5.11691266,2584.1,2582.7,0.7709]
[1746922204329,0.55,2583.9,2582.7,0.7709]
[1746922204527,3.87071801,2583.5,2581.3,5.641]
[1746922204685,0.55,2583.2,2581.4,0.7709]
[1746922204886,0.55,2582.8,2581.4,0.7709]
[1746922205081,13.926,2583.0,2581.6,0.7709]
[1746922205296,5.737,2583.4,2581.5,0.7709]
[1746922205511,5.737,2583.4,2581.8,0.55]
[1746922205715,5.737,2583.4,2582.0,0.55]
[1746922205895,5.737,2583.4,2582.2,0.55]
[1746922206109,13.926,2584.0,2582.6,0.55]
[1746922206308,13.926,2584.0,2582.7,0.7709]
[1746922207308,0.55,2583.8,2582.7,0.7709]
[1746922207739,19.524,2584.0,2580.8,5.737]
[1746922207740,3.8714495,2583.1,2582.3,0.7709]
[1746922208039,3.87175287,2582.9,2582.3,0.7709]
[1746922208247,5.737,2583.0,2582.3,0.7709]
[1746922208413,3.87164482,2582.9,2582.3,0.7709]
[1746922208615,3.87164482,2582.9,2580.4,15.90653112]
[1746922208616,0.55,2582.9,2581.8,0.7709]
[1746922208817,3.87231094,2582.5,2581.8,0.7709]
[1746922209034,3.87176707,2582.8,2581.8,0.7709]
[1746922209234,3.87277054,2582.2,2581.2,0.7709]
[1746922209418,0.55,2582.5,2581.2,0.7709]
[1746922209419,4.26013727,2582.1,2581.2,0.7709]
[1746922209619,13.926,2582.7,2581.2,0.7709]
[1746922209856,0.55,2582.6,2581.2,0.7709]
[1746922210045,4.42210372,2582.6,2581.2,0.7709]
[1746922210347,13.926,2582.7,2581.2,0.7709]
[1746922210815,13.926,2582.7,2580.5,8.0]
[1746922210816,13.926,2582.7,2581.4,0.7709]
[1746922211008,13.926,2582.7,2581.5,8.0]
[1746922211215,5.59,2582.9,2581.8,0.55]
[1746922211757,5.59,2582.9,2581.5,9.43579]
[1746922211910,13.929,2583.7,2582.2,0.55]
[1746922212105,13.929,2583.7,2582.1,0.7709]
[1746922212317,13.929,2583.7,2582.2,0.55]
[1746922212520,13.929,2583.7,2581.9,0.7709]
[1746922212745,13.929,2583.7,2582.0,0.03872085]
[1746922212905,0.55,2583.6,2581.9,0.7709]
[1746922213102,0.55,2583.4,2581.9,0.7709]
[1746922213307,0.55,2583.6,2582.0,0.0387265]
[1746922213550,0.55,2583.6,2581.9,0.7709]
[1746922213861,0.55,2583.1,2581.9,0.7709]
[1746922214503,3.87146728,2583.0,2581.9,0.7709]
[1746922214705,0.55,2582.7,2581.9,0.7709]
[1746922214909,5.591,2582.6,2581.9,0.7709]
[1746922215322,0.55,2582.5,2581.2,0.8326]
[1746922215611,3.87313092,2581.9,2580.7,0.8326]
[1746922215860,0.55,2582.2,2580.7,0.8326]
[1746922216037,0.55,2581.8,2580.7,0.8326]
[1746922216252,0.55,2581.4,2580.7,0.8326]
[1746922216453,5.592,2581.3,2580.7,0.8326]
[1746922216652,6.18256738,2581.3,2580.7,0.8326]
[1746922216988,5.592,2581.3,2579.6,4.87135407]
[1746922217129,5.592,2582.2,2579.9,0.55]
[1746922217325,5.592,2582.2,2580.1,0.55]
[1746922217326,0.03875419,2582.1,2580.1,0.55]
[1746922217772,0.03875419,2582.1,2580.2,0.03874224]
[1746922217926,0.03875419,2582.1,2580.3,0.55]
[1746922218131,0.03875419,2582.1,2580.5,0.55]
[1746922218375,0.03875419,2582.1,2580.1,5.513]
[1746922218559,0.55,2582.0,2580.1,5.513]
[1746922218893,5.592,2582.2,2580.1,5.513]
[1746922218894,0.03875419,2581.9,2580.1,5.513]
[1746922219186,0.55,2581.8,2579.5,4.0393]
[1746922219389,0.55,2581.8,2580.0,5.501]
[1746922219390,0.55,2581.6,2580.0,5.501]
[1746922219532,0.03875419,2581.5,2580.1,8.03875353]
[1746922219730,0.03875419,2581.8,2580.1,8.03875353]
[1746922219946,0.55,2581.4,2579.7,0.8332]
[1746922220183,0.03875419,2581.3,2579.8,0.03875549]
[1746922220531,0.03875419,2581.5,2580.0,0.55]
[1746922220737,0.03875419,2581.5,2580.2,0.55]
[1746922220937,0.7823,2581.9,2579.9,8.8332]
[1746922220938,0.03875419,2581.8,2580.6,0.55]
[1746922221171,0.03875419,2582.3,2580.9,0.8332]
[1746922221381,3.91138286,2582.3,2580.9,0.8332]
[1746922221788,0.03875419,2582.3,2580.9,0.8332]
[1746922221944,0.55,2582.2,2580.9,0.8332]
[1746922222144,0.03875419,2582.1,2581.0,0.038743]
[1746922222388,0.03875419,2582.3,2580.9,0.8332]
[1746922223046,0.03875419,2582.3,2581.0,0.0387385]
[1746922223247,3.87266671,2582.2,2580.9,0.8332]
[1746922223452,3.87319896,2581.9,2580.9,0.8332]
[1746922223667,3.87380589,2581.5,2580.4,0.8332]
[1746922223871,5.47775419,2581.4,2580.4,0.8332]
[1746922224055,9.35163932,2581.4,2580.4,0.8332]
[1746922224387,0.93516393,2581.3,2580.4,0.8332]
[1746922224553,0.03875419,2581.2,2580.4,0.8332]
[1746922225381,0.03875419,2581.5,2580.4,0.8332]
[1746922225777,0.03875419,2581.8,2580.4,0.8332]